fUST/lending_fUST_20251202
["ID","MTS","AMOUNT","RATE_DAILY","PERIOD"]
[395321828,1764621050797,-500.0,0.00014805,2]
[395321829,1764621050807,-500.0,0.00014805,2]
[395321830,1764621050817,-577.0,0.00014805,2]
[395321831,1764621050828,-360.0,0.00014811,2]
[395321832,1764621050838,-700.0,0.00014821,2]
[395321833,1764621050847,-500.0,0.00014832,2]
[395321834,1764621050857,-158.98730663,0.00014867,2]
[395321835,1764621050867,-157.12,0.00014881,2]
[395321836,1764621050877,-482.83147757,0.00014899,2]
[395321837,1764621050886,-370.36989476,0.00014899,2]
[395321838,1764621050897,-500.0,0.00014906,2]
[395321839,1764621050907,-499.3,0.00014908,2]
[395321840,1764621050917,-700.0,0.00014914,2]
[395321841,1764621050927,-1891.92887852,0.00014916,2]
[395321842,1764621050936,-2000.0,0.00014916,2]
[395321843,1764621050946,-518.14583766,0.00014916,2]
[395321844,1764621050957,-2000.0,0.00014916,2]
[395321845,1764621050966,-360.63180693,0.00014916,2]
[395321846,1764621050976,-2000.0,0.00014916,2]
[395321847,1764621050985,-182.24866509,0.00014916,2]
[395321848,1764621050995,-2000.0,0.00014916,2]
[395321849,1764621051004,-462.28967965,0.00014916,2]
[395321850,1764621051014,-1012.73080833,0.00014916,2]
[395321851,1764621051024,-2000.0,0.00014916,2]
[395321852,1764621051033,-854.79763394,0.00014916,2]
[395321853,1764621051048,-2000.0,0.00014916,2]
[395321854,1764621051063,-2000.0,0.00014916,2]
[395321855,1764621051073,-2000.0,0.00014916,2]
[395321856,1764621051082,-1000.96039451,0.00014916,2]
[395321857,1764621051092,-2000.0,0.00014916,2]
[395321858,1764621051102,-2000.0,0.00014916,2]
[395321859,1764621051111,-2000.0,0.00014916,2]
[395321860,1764621051120,-2000.0,0.00014916,2]
[395321861,1764621051130,-204.81290378,0.00014928,2]
[395321862,1764621051139,-172.19014174,0.00014942,2]
[395321863,1764621051149,-449.0,0.00014942,2]
[395321864,1764621051158,-1180.0,0.00014942,2]
[395321865,1764621051168,-500.0,0.00014942,2]
[395321866,1764621051177,-500.0,0.00014942,2]
[395321867,1764621051187,-577.0,0.00014942,2]
[395321868,1764621051197,-500.0,0.0001495,2]
[395321869,1764621051207,-150.0,0.00014982,2]
[395321870,1764621051216,-150.0,0.00014982,2]
[395321871,1764621051226,-1000.0,0.00014984,2]
[395321872,1764621051235,-500.0,0.00014984,2]
[395321873,1764621051245,-700.0,0.00014996,2]
[395321874,1764621051254,-985.35,0.00015,2]
[395321875,1764621051264,-946.0,0.00015,2]
[395321876,1764621051274,-707.03671712,0.00015,2]
[395321877,1764621051283,-330.40852639,0.00015028,2]
[395321878,1764621051292,-275.91344919,0.00015028,2]
[395321879,1764621051301,-700.0,0.00015059,2]
[395321880,1764621051311,-745.482001,0.00015068,2]
[395321881,1764621051320,-800.0,0.00015068,2]
[395321882,1764621051330,-449.0,0.00015079,2]
[395321883,1764621051339,-1180.0,0.00015079,2]
[395321884,1764621051348,-500.0,0.00015079,2]
[395321885,1764621051357,-500.0,0.00015079,2]
[395321886,1764621051367,-577.0,0.00015079,2]
[395321887,1764621051376,-700.0,0.00015099,2]
[395321888,1764621051385,-519.63985663,0.00015109,2]
[395321889,1764621051394,-500.0,0.00015114,2]
[395321890,1764621051403,-700.0,0.00015142,2]
[395321891,1764621051412,-500.0,0.00015191,2]
[395321892,1764621051422,-800.0,0.00015214,2]
[395321893,1764621051431,-449.0,0.00015216,2]
[395321894,1764621051440,-1180.0,0.00015216,2]
[395321895,1764621051450,-500.0,0.00015216,2]
[395321896,1764621051459,-500.0,0.00015216,2]
[395321897,1764621051468,-577.0,0.00015216,2]
[395321898,1764621051477,-700.0,0.00015244,2]
[395321899,1764621051486,-700.0,0.00015286,2]
[395321900,1764621051496,-500.0,0.000153,2]
[395321901,1764621051505,-500.0,0.00015313,2]
[395321902,1764621051515,-287.61899177,0.0001533,2]
[395321903,1764621051525,-510.30491221,0.00015342,2]
[395321904,1764621051534,-2000.0,0.00015342,2]
[395321905,1764621051543,-500.0,0.00015342,2]
[395321906,1764621051553,-2000.0,0.00015342,2]
[395321907,1764621051562,-2000.0,0.00015342,2]
[395321908,1764621051572,-1178.41272614,0.00015342,2]
[395321909,1764621051582,-1494.20724676,0.00015342,2]
[395321910,1764621051591,-601.4813542,0.00015342,2]
[395321911,1764621051600,-2000.0,0.00015342,2]
[395321912,1764621051610,-1501.33146258,0.00015342,2]
[395321913,1764621051619,-2000.0,0.00015342,2]
[395321914,1764621051629,-2000.0,0.00015342,2]
[395321915,1764621051639,-500.0,0.00015352,2]
[395321916,1764621051648,-449.0,0.00015353,2]
[395321917,1764621051658,-1180.0,0.00015353,2]
[395321918,1764621051667,-500.0,0.00015353,2]
[395321919,1764621051677,-500.0,0.00015353,2]
[395321920,1764621051687,-577.0,0.00015353,2]
[395321921,1764621051696,-460.0,0.00015359,2]
[395321922,1764621051707,-700.0,0.0001536,2]
[395321923,1764621051717,-500.0,0.00015364,2]
[395321924,1764621051726,-293.85068442,0.0001539,2]
[395321925,1764621051735,-1001.54351372,0.00015395,2]
[395321926,1764621051745,-50000.0,0.000154,2]
[395321927,1764621051754,-500.0,0.00015429,2]
[395321928,1764621051764,-700.0,0.0001545,2]
[395321929,1764621051773,-500.0,0.00015451,2]
[395321930,1764621051782,-700.0,0.00015459,2]
[395321931,1764621051792,-2500.0,0.00015464,2]
[395321932,1764621051801,-1149.53357804,0.00015464,2]
[395321933,1764621051811,-2500.0,0.00015464,2]
[395321934,1764621051820,-2500.0,0.00015464,2]
[395321935,1764621051833,-2500.0,0.00015464,2]
[395321936,1764621051843,-2500.0,0.00015464,2]
[395321937,1764621051852,-536.05731118,0.00015464,2]
[395321938,1764621051861,-2500.0,0.00015464,2]
[395321939,1764621051873,-2500.0,0.00015464,2]
[395321940,1764621051882,-2500.0,0.00015464,2]
[395321941,1764621051892,-1820.39841706,0.00015464,2]
[395321942,1764621051901,-1014.148079,0.00015464,2]
[395321943,1764621051911,-449.0,0.0001549,2]
[395321944,1764621051921,-1180.0,0.0001549,2]
[395321945,1764621051930,-500.0,0.0001549,2]
[395321946,1764621051940,-500.0,0.0001549,2]
[395321947,1764621051949,-577.0,0.0001549,2]
[395321948,1764621051961,-700.0,0.00015503,2]
[395321949,1764621051971,-700.0,0.00015531,2]
[395321950,1764621051981,-700.0,0.00015575,2]
[395321951,1764621051991,-500.0,0.00015586,2]
[395321952,1764621052001,-500.0,0.00015609,2]
[395321953,1764621052011,-449.0,0.00015627,2]
[395321954,1764621052027,-1180.0,0.00015627,2]
[395321955,1764621052037,-500.0,0.00015627,2]
[395321956,1764621052048,-500.0,0.00015627,2]
[395321957,1764621052058,-577.0,0.00015627,2]
[395321958,1764621052068,-800.0,0.00015645,2]
[395321959,1764621052078,-500.0,0.00015689,2]
[395321960,1764621052088,-700.0,0.00015756,2]
[395321961,1764621052098,-157.12,0.00015758,2]
[395321962,1764621052108,-449.0,0.00015764,2]
[395321963,1764621052118,-1180.0,0.00015764,2]
[395321964,1764621052126,-500.0,0.00015764,2]
[395321965,1764621052136,-500.0,0.00015764,2]
[395321966,1764621052147,-577.0,0.00015764,2]
[395321967,1764621052157,-500.0,0.00015797,2]
[395321968,1764621052166,-160.0,0.000158,2]
[395321969,1764621052175,-160.0,0.000158,3]
[395321970,1764621052185,-2000.0,0.000158,2]
[395321971,1764621052194,-298.26089446,0.00015878,2]
[395321972,1764621052204,-2500.0,0.0001589,2]
[395321973,1764621052213,-500.0,0.0001589,2]
[395321974,1764621052223,-540.09035954,0.0001589,2]
[395321975,1764621052233,-2500.0,0.0001589,2]
[395321976,1764621052242,-2500.0,0.0001589,2]
[395321977,1764621052252,-2500.0,0.0001589,2]
[395321978,1764621052262,-2500.0,0.0001589,2]
[395321979,1764621052272,-449.0,0.00015901,2]
[395321980,1764621052282,-1180.0,0.00015901,2]
[395321981,1764621052291,-221.60369053,0.00015901,2]
[395321982,1764621052301,-234.03140682,0.00015901,2]
[395321983,1764621052311,-577.0,0.00015901,2]
[395321984,1764621052321,-157.12,0.00015907,2]
[395321985,1764621052330,-560.0,0.00015907,2]
[395321986,1764621052340,-700.0,0.00015986,2]
[395321987,1764621052350,-800.0,0.00015996,2]
[395321988,1764621052359,-1000.0,0.00016,2]
[395321989,1764621052368,-353.71323156,0.00016,3]
[395321990,1764621052378,-214.83177934,0.00016,2]
[395321991,1764621052387,-2789.509962,0.00016012,2]
[395321992,1764621052397,-3000.0,0.00016012,2]
[395321993,1764621052406,-3000.0,0.00016012,2]
[395321994,1764621052416,-3000.0,0.00016012,2]
[395321995,1764621052426,-3000.0,0.00016012,2]
[395321996,1764621052435,-533.25398842,0.00016012,2]
[395321997,1764621052445,-3000.0,0.00016012,2]
[395321998,1764621052455,-3000.0,0.00016012,2]
[395321999,1764621052465,-11291.82133935,0.00016023,2]
[395322000,1764621052475,-700.0,0.00016027,2]
[395322001,1764621052484,-800.0,0.00016035,2]
[395322002,1764621052494,-449.0,0.00016038,2]
[395322003,1764621052503,-1180.0,0.00016038,2]
[395322004,1764621052513,-577.0,0.00016038,2]
[395322005,1764621052522,-700.0,0.00016056,2]
[395322006,1764621052532,-500.0,0.00016061,2]
[395322007,1764621052541,-700.0,0.00016071,2]
[395322008,1764621052550,-700.0,0.00016118,2]
[395322009,1764621052560,-1600.0,0.00016164,2]
[395322010,1764621052570,-700.0,0.00016169,2]
[395322011,1764621052580,-449.0,0.00016175,2]
[395322012,1764621052589,-1180.0,0.00016175,2]
[395322013,1764621052599,-577.0,0.00016175,2]
[395322014,1764621052610,-500.0,0.00016209,2]
[395322015,1764621052619,-569.33489068,0.00016214,2]
[395322016,1764621052628,-1000.0,0.00016239,2]
[395322017,1764621052638,-244.0,0.00016239,2]
[395322018,1764621052647,-150.0,0.00016265,2]
[395322019,1764621052657,-700.0,0.00016266,2]
[395322020,1764621052667,-800.0,0.00016284,2]
[395322021,1764621052676,-937.71254833,0.00016293,2]
[395322022,1764621052687,-800.0,0.00016308,2]
[395322023,1764621052697,-449.0,0.00016312,2]
[395322024,1764621052707,-1180.0,0.00016312,2]
[395322025,1764621052716,-577.0,0.00016312,2]
[395322026,1764621052725,-806.19259935,0.00016325,2]
[395322027,1764621052735,-800.0,0.00016408,2]
[395322028,1764621052745,-309.29654756,0.00016426,2]
[395322029,1764621052754,-448.1,0.00016438,2]
[395322030,1764621052764,-500.0,0.00016438,2]
[395322031,1764621052779,-329.326278,0.00016438,2]
[395322032,1764621052788,-329.326278,0.00016438,2]
[395322033,1764621052797,-329.326278,0.00016438,2]
[395322034,1764621052807,-329.326278,0.00016438,2]
[395322035,1764621052817,-329.326278,0.00016438,2]
[395322036,1764621052827,-329.326278,0.00016438,2]
[395322037,1764621052840,-329.326278,0.00016438,2]
[395322038,1764621052850,-329.326278,0.00016438,2]
[395322039,1764621052859,-329.326278,0.00016438,2]
[395322040,1764621052868,-329.326278,0.00016438,2]
[395322041,1764621052878,-329.326278,0.00016438,2]
[395322042,1764621052888,-329.326278,0.00016438,2]
[395322043,1764621052898,-329.326278,0.00016438,2]
[395322044,1764621052908,-329.326278,0.00016438,2]
[395322045,1764621052918,-329.326278,0.00016438,2]
[395322046,1764621052927,-329.326278,0.00016438,2]
[395322047,1764621052936,-329.326278,0.00016438,2]
[395322048,1764621052946,-329.326278,0.00016438,2]
[395322049,1764621052955,-329.326278,0.00016438,2]
[395322050,1764621052965,-329.326275,0.00016438,2]
[395322051,1764621052975,-59.74782714,0.00016438,3]
[395322052,1764621053148,-213.85874,0.00012548,2]
[395322053,1764621053158,-561.77969426,0.00012548,2]
[395322054,1764621053330,-1.21243456,0.00011835,2]
[395322055,1764621053432,-628.78756544,0.00011835,2]
[395322056,1764621053443,-319.65694474,0.00012548,2]
[395322057,1764621053455,-881.436639,0.00012548,2]
[395322058,1764621053468,-881.436639,0.00012548,2]
[395322059,1764621053477,-213.85874,0.00013572,2]
[395322060,1764621053487,-881.436639,0.00013572,2]
[395322061,1764621053497,-881.436639,0.00013572,2]
[395322062,1764621053506,-789.54201162,0.00013572,2]
[395322063,1764621053524,-91.89462738,0.00013572,2]
[395322064,1764621053534,-213.85874,0.00013698,2]
[395322065,1764621053544,-54.94659262,0.00013698,2]
[395322069,1764621299001,231.93331244,9.111e-05,2]
[395322070,1764621362369,250.0,0.0002,30]
[395322091,1764622045144,-168.37777693,9.556e-05,2]
[395322092,1764622045165,-168.37777693,9.653e-05,2]
[395322093,1764622045187,-181.4691496,9.8e-05,2]
[395322094,1764622045207,-170.97322041,0.00010462,2]
[395322095,1764622045227,-1200.0,0.00010674,2]
[395322096,1764622045248,-170.0,0.00010674,2]
[395322097,1764622045270,-300.0,0.00010674,2]
[395322098,1764622045291,-168.37777693,0.00010675,2]
[395322099,1764622045312,-500.0,0.00010675,2]
[395322100,1764622045333,-425.76258611,0.00010675,2]
[395322101,1764622045354,-288.78383376,0.00010675,2]
[395322102,1764622045375,-506.04973819,0.00010675,2]
[395322103,1764622045397,-500.0,0.00010675,2]
[395322104,1764622045416,-500.0,0.00010675,2]
[395322105,1764622045435,-500.0,0.00010675,2]
[395322106,1764622045455,-500.0,0.00010675,2]
[395322107,1764622045475,-298.61344702,0.00010675,2]
[395322108,1764622045495,-500.0,0.00010675,2]
[395322109,1764622045514,-500.0,0.00010675,2]
[395322110,1764622045534,-500.0,0.00010675,2]
[395322111,1764622045553,-500.0,0.00010675,2]
[395322112,1764622045572,-500.0,0.00010675,2]
[395322113,1764622045592,-500.0,0.00010675,2]
[395322114,1764622045613,-500.0,0.00010675,2]
[395322115,1764622045634,-406.73397305,0.00010675,2]
[395322116,1764622047091,-93.26602695,0.00010675,2]
[395322117,1764622047112,-500.0,0.00010675,2]
[395322118,1764622047134,-382.7977976,0.00010675,2]
[395322119,1764622156343,-155.22363891,0.00010462,2]
[395322124,1764622199445,309.29594015,9.111e-05,2]
[395322197,1764622232398,-116.23268714,0.00010462,2]
[395322199,1764622232408,-271.45632605,0.00010568,2]
[395322201,1764622232417,-415.89825413,0.00010575,2]
[395322203,1764622232427,-81858.41273265,0.00010576,2]
[395322224,1764622238666,-1006.27850319,0.00010576,2]
[395322225,1764622238679,-4121.73539871,0.00010576,2]
[395322226,1764622238690,-205015.27831343,0.00010576,2]
[395322254,1764622240334,-404.00500841,0.00010576,2]
[395322256,1764622240345,-3800.012445,0.00010576,2]
[395322258,1764622240357,-650.76259487,0.00010576,2]
[395322526,1764622243317,-200.0,0.00010575,2]
[395322528,1764622243326,-451.0,0.00010575,2]
[395322530,1764622243337,-49.0,0.00010575,2]
[395322532,1764622243347,-268.9235118,0.00010575,2]
[395322816,1764622246330,-231.0764882,0.00010575,2]
[395322818,1764622246339,-500.0,0.00010575,2]
[395322820,1764622246349,-588.73482745,0.00010575,2]
[395322821,1764622246359,-500.0,0.00010575,2]
[395322823,1764622246368,-500.0,0.00010575,2]
[395322824,1764622246378,-158.15217224,0.00010575,2]
[395322826,1764622246388,-500.0,0.00010575,2]
[395322827,1764622246397,-427.73402606,0.00010575,2]
[395322828,1764622246406,-95.96109451,0.00010576,2]
[395323003,1764622322972,250.0,0.0002,30]
[395323017,1764623251135,-162.53176909,0.00010008,2]
[395323019,1764623282139,250.0,0.0002,30]
[395323020,1764623345088,-6.7548004,0.00010008,2]
[395323021,1764623345110,-177.83976661,0.00010174,2]
[395323022,1764623345129,-155.79370685,0.00010343,2]
[395323023,1764623345150,-34.63826528,0.00010475,2]
[395323159,1764623443678,-162.53176909,0.0001037,2]
[395323160,1764623443687,-256.49051261,0.00010475,2]
[395323161,1764623443696,-122.6277183,0.00010475,2]
[395323175,1764623446462,-147.12050682,0.00010475,2]
[395323176,1764623446473,-179.21789438,0.00010476,2]
[395323177,1764623446518,-741.06703611,0.00010476,2]
[395323178,1764623697441,206.33471249,9.111e-05,2]
[395323180,1764623880529,400.0,0.0001042,3]
[395323182,1764623989768,5104.0,0.0002,30]
[395323183,1764624001604,5000.0,0.0002,30]
[395323184,1764624182993,250.0,0.0002,30]
[395323188,1764624437518,-489.9155145,9.376e-05,2]
[395323189,1764624437538,-489.9155145,9.471e-05,2]
[395323190,1764624437557,-220.02157014,9.564e-05,2]
[395323191,1764624437578,-184.90358203,9.713e-05,2]
[395323192,1764624437598,-85.70545621,0.00010375,2]
[395323193,1764624439091,-190.24659271,0.00010375,2]
[395323194,1764624439113,-615.41498083,0.00010375,2]
[395323195,1764624439133,-300.0,0.00010375,2]
[395323196,1764624439159,-35.27501204,0.00010376,2]
[395323203,1764624573088,-592.00421578,0.00010272,2]
[395323204,1764624573108,-184.98700948,0.00010324,2]
[395323205,1764624573129,-300.0,0.00010375,2]
[395323206,1764624573153,-8271.03923747,0.00010376,2]
[395323207,1764624597864,206.43782828,9.111e-05,2]
[395323241,1764624632505,-300.0,0.00010375,2]
[395323243,1764624632517,-300.0,0.00010375,2]
[395323245,1764624632528,-300.0,0.00010375,2]
[395323247,1764624632539,-300.0,0.00010375,2]
[395323250,1764624632550,-1200.0,0.00010375,2]
[395323252,1764624632560,-17606.30112924,0.00010376,2]
[395323254,1764624632573,-11856.30000003,0.00010376,2]
[395323334,1764624638553,-8663.19639879,0.00010376,2]
[395323338,1764624638565,-980.27895504,0.00010376,2]
[395323347,1764624638616,-397.54104496,0.00010376,2]
[395323412,1764624640681,-1043.82584185,0.00010376,2]
[395323526,1764624643653,-26000.0,0.00010376,2]
[395323529,1764625142981,250.0,0.0002,30]
[395323530,1764625538121,-171.6985187,0.00010113,2]
[395323532,1764625640099,-9.58875059,0.00010113,2]
[395323533,1764625640120,-181.28726929,0.00010215,2]
[395323534,1764625640140,-193.16643424,0.00010275,2]
[395323535,1764625640161,-476.06382455,0.00010275,2]
[395323536,1764625640182,-165.39732716,0.00010275,2]
[395323537,1764625769114,-300.99021487,0.00010172,2]
[395323574,1764625831685,-33.61245797,0.00010172,2]
[395323576,1764625831695,-177.6615239,0.00010223,2]
[395323578,1764625831704,-151.0,0.0001027,2]
[395323580,1764625831714,-334.60267284,0.00010275,2]
[395323582,1764625831723,-109.32311347,0.00010275,2]
[395323638,1764625837815,-842.67688653,0.00010275,2]
[395323639,1764625837825,-323.09116898,0.00010276,2]
[395323640,1764625837836,-607.05199346,0.00010276,2]
[395323641,1764625837878,-5974.71225608,0.00010276,2]
[395323642,1764625837890,-91474.4365618,0.00010276,2]
[395323643,1764625837940,-19332.11915625,0.00010276,2]
[395323675,1764625839893,-367.6422286,0.00010276,2]
[395323677,1764625839905,-872.29,0.00010276,2]
[395323683,1764625839956,-403.89880841,0.00010276,2]
[395323686,1764625839968,-607.66267355,0.00010276,2]
[395323978,1764625842904,-19560.95694905,0.00010276,2]
[395323980,1764625842915,-1412.0,0.00010276,2]
[395323982,1764625842926,-36720.84998526,0.00010276,2]
[395323993,1764625843017,-11838.91156332,0.00010276,2]
[395323995,1764625843029,-296.04,0.00010276,2]
[395324001,1764625843081,-19.07761319,0.00010276,2]
[395324252,1764625845821,-17111.38931051,0.00010276,2]
[395324260,1764625845885,-221673.16204304,0.00010276,2]
[395324764,1764626102915,250.0,0.0002,30]
[395324800,1764626630443,1386.3743468,9.207e-05,2]
[395324801,1764626704261,227.0,9.207e-05,2]
[395324803,1764626847574,227.0,9.207e-05,2]
[395324804,1764626850118,-162.53176909,9.347e-05,2]
[395324805,1764626947093,-11.57652433,9.347e-05,2]
[395324806,1764626947115,-227.0,9.394e-05,2]
[395324807,1764626947135,-1082.31658494,9.489e-05,2]
[395324845,1764627032006,-77.05776186,9.489e-05,2]
[395324847,1764627032016,-558.95621362,0.00010175,2]
[395324848,1764627032026,-366.30171177,0.00010175,2]
[395324878,1764627037997,-322.24925186,0.00010175,2]
[395324879,1764627038009,-314.44903637,0.00010175,2]
[395324880,1764627038020,-3078.82803155,0.00010176,2]
[395324881,1764627038030,-14975.79853558,0.00010176,2]
[395324882,1764627038056,-923.43172791,0.00010176,2]
[395325339,1764627043150,-42643.35327549,0.00010176,2]
[395325361,1764627045984,-20166.69176862,0.00010176,2]
[395325362,1764627045998,-608.24562,0.00010176,2]
[395325368,1764627062088,250.0,0.0002,30]
[395325369,1764627344703,1000.0,0.0002,30]
[395325370,1764627623704,-300.0,9.76e-05,2]
[395325371,1764627623727,-300.0,9.859e-05,2]
[395325372,1764627623749,-512.52379337,9.86e-05,2]
[395325373,1764627623775,-922.54282806,9.86e-05,2]
[395325374,1764627623798,-1640.07613878,9.86e-05,2]
[395325375,1764627623821,-2562.61896684,9.86e-05,2]
[395325376,1764627623845,-3686.48114093,9.86e-05,2]
[395325377,1764627623867,-341.57659845,9.86e-05,2]
[395325378,1764627623890,-614.83787721,9.86e-05,2]
[395325379,1764627623913,-1093.04511504,9.86e-05,2]
[395325380,1764627623935,-1707.88299225,9.86e-05,2]
[395325381,1764627623957,-2459.35150884,9.86e-05,2]
[395325382,1764627623979,-3347.45066481,9.86e-05,2]
[395325383,1764627624001,-4372.18046016,9.86e-05,2]
[395325384,1764627624028,-5533.54089489,9.86e-05,2]
[395325385,1764627624051,-605.89102037,9.86e-05,2]
[395325386,1764627645922,-300.0,9.662e-05,2]
[395325387,1764627646211,-4700.0,9.86e-05,2]
[395325388,1764627711210,-300.0,9.565e-05,2]
[395325389,1764627711231,-1518.80941666,9.86e-05,2]
[395325390,1764627711251,-177.36828594,0.00010048,2]
[395325391,1764627711274,-48003.8222974,0.00010076,2]
[395325395,1764627729950,-300.0,9.469e-05,2]
[395325396,1764627729972,-173.82092023,9.772e-05,2]
[395325397,1764627729996,-49526.17907977,0.00010076,2]
[395325398,1764627758408,-15339.0218464,9.975e-05,2]
[395325399,1764627758435,-34660.9781536,0.00010076,2]
[395325400,1764627761585,-50000.0,0.00010076,2]
[395325401,1764627780529,2634.0,0.0002,30]
[395325402,1764627808559,-50000.0,0.00010076,2]
[395325403,1764627815741,-50000.0,0.00010076,2]
[395325404,1764627849271,-50000.0,0.00010076,2]
[395325405,1764627853298,-50000.0,0.00010076,2]
[395325414,1764628022517,250.0,0.0002,30]
[395325415,1764628033301,-344.41212778,9.875e-05,2]
[395325422,1764628047094,-145.50338672,9.875e-05,2]
[395325423,1764628047115,-489.9155145,9.975e-05,2]
[395325424,1764628047137,-220.02157014,9.976e-05,2]
[395325425,1764628047162,-285.49611422,0.00010075,2]
[395325426,1764628048090,-329.91886661,0.00010075,2]
[395325427,1764628048112,-300.0,0.00010075,2]
[395325428,1764628048140,-796.04696761,0.00010076,2]
[395325429,1764628149351,-620.77531835,0.00010006,2]
[395325475,1764628238226,-1655.49229119,0.00010006,2]
[395325476,1764628238237,-3134.09100819,0.00010076,2]
[395325477,1764628238250,-4323.15,0.00010076,2]
[395325478,1764628238264,-6841.05023321,0.00010076,2]
[395325479,1764628238278,-39595.1880662,0.00010076,2]
[395325518,1764628240520,-17285.08242949,0.00010076,2]
[395325583,1764628246525,-353541.80786836,0.00010076,2]
[395325585,1764628246537,-9239.59067387,0.00010076,2]
[395325587,1764628246549,-678.01350082,0.00010076,2]
[395325603,1764628982977,250.0,0.0002,30]
[395325605,1764629238143,-228.39359823,9.975e-05,2]
[395325606,1764629238165,-476.06382455,9.975e-05,2]
[395325607,1764629238186,-165.39732716,9.975e-05,2]
[395325608,1764629238207,-178.3273202,9.975e-05,2]
[395325609,1764629238231,-17.36775853,9.976e-05,2]
[395325611,1764629354139,-297.9793262,9.876e-05,2]
[395325612,1764629356487,-12.59963926,9.876e-05,2]
[395325613,1764629356520,-1807.32518672,9.976e-05,2]
[395325700,1764629438586,-287.48678427,9.906e-05,2]
[395325701,1764629438602,-706.95306006,9.906e-05,2]
[395325702,1764629438614,-381.18565502,9.906e-05,2]
[395325827,1764629443618,-141.88624033,9.906e-05,2]
[395325828,1764629443628,-1731.60880381,9.976e-05,2]
[395325830,1764629443735,-453.0,9.976e-05,2]
[395325858,1764629769092,633.4442024,9.002e-05,2]
[395325860,1764629942641,250.0,0.0002,30]
[395325902,1764630432835,157.26051209,0.00010616,3]
[395325909,1764630448138,-162.53176909,9.39e-05,2]
[395325914,1764630454112,-157.10401104,9.39e-05,2]
[395325915,1764630454135,-119.31557405,9.594e-05,2]
[395325951,1764630550076,-62.32158051,9.594e-05,2]
[395325952,1764630550095,-321.11342277,9.775e-05,2]
[395325953,1764630550116,-300.0,9.775e-05,2]
[395325954,1764630550141,-137.28386301,9.776e-05,2]
[395325957,1764630555105,-125377.81921534,9.776e-05,2]
[395325959,1764630570102,-184.97097177,9.776e-05,2]
[395325988,1764630632609,-443.97343956,9.775e-05,2]
[395325989,1764630632621,-756.02656044,9.775e-05,2]
[395325990,1764630632630,-152288.96848518,9.776e-05,2]
[395325991,1764630632641,-3812.80838128,9.776e-05,2]
[395326014,1764630638703,-120000.0,9.776e-05,2]
[395326015,1764630638714,-30449.60433155,9.776e-05,2]
[395326016,1764630638822,-2514.17811519,9.776e-05,2]
[395326202,1764630646665,-24836.75431378,9.776e-05,2]
[395326250,1764630779236,304.60016237,9.111e-05,2]
[395326343,1764630898091,272.06043929,9.111e-05,2]
[395326347,1764630903324,250.0,0.0002,30]
[395326505,1764631341251,407.976666,9.094e-05,2]
[395326678,1764631508108,228.0,9.194e-05,2]
[395326680,1764631531084,228.0,9.194e-05,2]
[395326681,1764631556085,-228.0,9.287e-05,2]
[395326682,1764631556107,-200.16223104,9.429e-05,2]
[395326683,1764631556128,-228.0,9.476e-05,2]
[395326684,1764631556154,-2893.18796394,9.676e-05,2]
[395326685,1764631565749,220.02157014,9.187e-05,2]
[395326686,1764631635097,-300.0,9.578e-05,2]
[395326687,1764631635119,-55.81412343,9.626e-05,2]
[395326691,1764631642104,-140.34486299,9.626e-05,2]
[395326692,1764631642124,-300.0,9.674e-05,2]
[395326693,1764631642143,-337.35080013,9.675e-05,2]
[395326694,1764631642164,-363.24092246,9.675e-05,2]
[395326695,1764631645084,-1389.92423367,9.675e-05,2]
[395326702,1764631724119,345.0,0.0002,120]
[395326703,1764631724149,30.78098129,0.0002,120]
[395326709,1764631773084,-882.00926499,9.578e-05,2]
[395326710,1764631773104,-52.94296403,9.673e-05,2]
[395326711,1764631798128,181.49450165,9.111e-05,2]
[395326736,1764631832027,-300.0,9.673e-05,2]